fUST/lending_fUST_20251021
["ID","MTS","AMOUNT","RATE_DAILY","PERIOD"]
[391924216,1760994657735,-259730.85921196,0.00027,2]
[391924217,1760994657749,-141144.02083749,0.00027,2]
[391924218,1760994657763,-600.0,0.00027,14]
[391924219,1760994657777,-277.0,0.00027,2]
[391924220,1760994657792,-160.0,0.00027,3]
[391924221,1760994657801,-263.057933,0.00027,2]
[391924222,1760994657811,-191.894547,0.00027,2]
[391924223,1760994657820,-402.9601108,0.00027,3]
[391924224,1760994657830,-155.0,0.00027,7]
[391924225,1760994657839,-87069.41279568,0.00027,3]
[391924227,1760994686885,150.0,0.00021647,2]
[391924228,1760994687477,150.0,0.00023614,2]
[391924361,1760994765180,150.0,0.00021489,2]
[391924363,1760994765599,150.0,0.00023442,2]
[391924368,1760994816557,786.41755257,0.00024073,2]
[391924369,1760994838076,150.0,0.00021741,2]
[391924370,1760994838528,150.0,0.00023718,2]
[391924371,1760994847754,338.267502,0.00030137,120]
[391924372,1760994858428,761.84000001,0.000237,2]
[391924373,1760994884550,2298.94564467,0.00024,2]
[391924374,1760994912821,150.0,0.00021518,2]
[391924375,1760994913723,150.0,0.00023474,2]
[391924376,1760994988732,150.0,0.000215,2]
[391924377,1760994989367,150.0,0.00023454,2]
[391924378,1760995020879,3834.80343472,0.00024,2]
[391924379,1760995020909,7067.9064308,0.00024,2]
[391924381,1760995025404,164.835611,0.00024075,2]
[391924383,1760995032089,688.11535849,0.00024,2]
[391924394,1760995059303,150.0,0.00021502,2]
[391924395,1760995059700,150.0,0.00023457,2]
[391924396,1760995074871,156.80778272,0.00023988,2]
[391924397,1760995086368,1622.34481699,0.00024075,2]
[391924398,1760995086390,3377.65518301,0.00024075,2]
[391924399,1760995091551,226.2617074,0.00023141,2]
[391924400,1760995094327,4984.59769996,0.00024075,2]
[391924401,1760995103039,1411.49540963,0.00024075,2]
[391924402,1760995103062,3573.09229033,0.00024075,2]
[391924403,1760995110932,5000.0,0.00024075,2]
[391924404,1760995130228,150.0,0.00021505,2]
[391924405,1760995130912,150.0,0.0002346,2]
[391924406,1760995133539,1126.91770967,0.00024075,2]
[391924407,1760995133562,3873.08229033,0.00024075,2]
[391924408,1760995200701,150.0,0.00021496,2]
[391924409,1760995201312,150.0,0.0002345,2]
[391924410,1760995228283,1839.15651576,0.00024,2]
[391924411,1760995247672,602.10093867,0.00023997,2]
[391924412,1760995275661,150.0,0.00021532,2]
[391924413,1760995276759,150.0,0.00023489,2]
[391924414,1760995281367,3085.67025524,0.00024,2]
[391924415,1760995281389,4182.80298844,0.00024,2]
[391924417,1760995347694,150.0,0.00021523,2]
[391924418,1760995348142,150.0,0.0002348,2]
[391924419,1760995418268,150.0,0.00021503,2]
[391924420,1760995418699,150.0,0.00023458,2]
[391924421,1760995457555,1000.8,0.00030137,120]
[391924422,1760995463736,526.83832131,0.00024,2]
[391924423,1760995486949,150.0,0.00021509,2]
[391924424,1760995487222,150.0,0.00023464,2]
[391924426,1760995541290,4845.64882912,0.00024,2]
[391924427,1760995553263,150.0,0.00021506,2]
[391924428,1760995553712,150.0,0.00023461,2]
[391924429,1760995570172,1471.3252126,0.00024,2]
[391924430,1760995596827,328.9372718,0.00023283,2]
[391924432,1760995619786,150.0,0.00021533,2]
[391924434,1760995620178,150.0,0.0002349,2]
[391924439,1760995637458,168.723552,0.0001157,2]
[391924441,1760995679207,460.98353119,0.00023997,2]
[391924442,1760995686245,150.0,0.00021529,2]
[391924443,1760995686712,150.0,0.00023486,2]
[391924445,1760995692101,530.93304308,0.000237,14]
[391924451,1760995751454,150.0,0.00021478,2]
[391924452,1760995751902,150.0,0.0002343,2]
[391924456,1760995801478,166.6202389,0.00024,2]
[391924457,1760995801500,10000.01,0.00024,2]
[391924458,1760995801523,3018.1833617,0.00024,2]
[391924459,1760995817908,150.0,0.00021491,2]
[391924460,1760995818363,150.0,0.00023444,2]
[391924492,1760995832030,-213.81783792,0.00024087,2]
[391924493,1760995832039,-793.0,0.00024087,2]
[391924494,1760995832050,-289.11991208,0.00024088,3]
[391924495,1760995832062,-463.66376798,0.00024088,3]
[391924496,1760995832073,-312.25048316,0.00024088,3]
[391924497,1760995832084,-24.26583678,0.00024088,3]
[391924498,1760995832094,-1089.3,0.00024088,3]
[391924499,1760995832103,-203.7,0.00024088,3]
[391924500,1760995832113,-300.0,0.00024096,2]
[391924501,1760995832122,-32091.56922813,0.00024097,2]
[391924502,1760995832152,-1315.72773829,0.00024097,2]
[391924513,1760995837944,-160.0,0.00024087,2]
[391924514,1760995837955,-2812.02,0.00024088,10]
[391924515,1760995837965,-236.49104337,0.00024097,2]
[391924516,1760995837975,-195.49727558,0.00024097,2]
[391924517,1760995837985,-201.68431365,0.00024097,2]
[391924518,1760995837997,-69.9812581,0.00024097,2]
[391924519,1760995838007,-500.0,0.00024097,2]
[391924520,1760995838018,-193.44326697,0.00024097,2]
[391924521,1760995838027,-500.0,0.00024097,2]
[391924522,1760995838037,-500.0,0.00024097,2]
[391924523,1760995838047,-641.30735277,0.00024097,2]
[391924524,1760995838057,-200.0,0.00024098,10]
[391924525,1760995838067,-200.0,0.00024098,10]
[391924526,1760995838077,-200.0,0.00024098,10]
[391924527,1760995838087,-200.0,0.00024098,10]
[391924528,1760995838097,-200.0,0.00024098,10]
[391924529,1760995838107,-200.0,0.00024098,10]
[391924530,1760995838117,-200.0,0.00024098,10]
[391924531,1760995838127,-313.596716,0.00024098,10]
[391924532,1760995838137,-370000.0,0.00024098,2]
[391924533,1760995838147,-20379.88,0.000241,7]
[391924534,1760995838157,-2881.8318875,0.00024142,2]
[391924535,1760995838167,-30178.1618188,0.00024268,2]
[391924536,1760995838177,-315.0,0.00024569,2]
[391924537,1760995838187,-300.0,0.0002468,20]
[391924538,1760995838196,-300.0,0.0002468,20]
[391924539,1760995838206,-300.0,0.0002468,20]
[391924540,1760995838216,-300.0,0.0002468,20]
[391924541,1760995838227,-300.0,0.0002468,20]
[391924542,1760995838237,-300.0,0.0002468,20]
[391924543,1760995838246,-300.0,0.0002468,20]
[391924544,1760995838256,-300.0,0.0002468,20]
[391924545,1760995838266,-300.0,0.0002468,20]
[391924546,1760995838276,-300.0,0.0002468,20]
[391924547,1760995838286,-300.0,0.0002468,20]
[391924548,1760995838295,-300.0,0.0002468,20]
[391924549,1760995838306,-300.0,0.0002468,20]
[391924550,1760995838315,-300.0,0.0002468,20]
[391924551,1760995838325,-300.0,0.0002468,20]
[391924552,1760995838334,-245.89051361,0.00024687,2]
[391924553,1760995838344,-371.0,0.00024824,2]
[391924554,1760995838353,-215.55145289,0.00024873,2]
[391924555,1760995838363,-500.0,0.00024873,2]
[391924556,1760995838373,-501.84242892,0.00024873,2]
[391924557,1760995838383,-261.40251625,0.00024873,2]
[391924558,1760995838392,-500.0,0.00024873,2]
[391924559,1760995838402,-500.0,0.00024873,2]
[391924560,1760995838412,-500.0,0.00024873,2]
[391924561,1760995838422,-500.0,0.00024873,2]
[391924562,1760995838432,-500.0,0.00024873,2]
[391924563,1760995838441,-500.0,0.00024873,2]
[391924564,1760995838451,-68655.4893396,0.000249,2]
[391924565,1760995838460,-500.0,0.000249,2]
[391924566,1760995838470,-167.72588203,0.0002499,2]
[391924567,1760995838479,-162.0,0.00025,7]
[391924568,1760995838489,-40115.0,0.00025,2]
[391924569,1760995838498,-461.0,0.00025079,2]
[391924570,1760995838508,-666.0,0.00025119,2]
[391924571,1760995838517,-600.0,0.00025173,20]
[391924572,1760995838527,-500.0,0.00025174,2]
[391924573,1760995838537,-199.0,0.00025205,7]
[391924574,1760995838547,-277.9631893,0.00025287,2]
[391924575,1760995838555,-500.0,0.00025295,2]
[391924576,1760995838564,-151.0,0.00025295,2]
[391924577,1760995838572,-500.0,0.00025295,2]
[391924578,1760995838580,-500.0,0.0002535,2]
[391924579,1760995838589,-151.0,0.0002535,2]
[391924580,1760995838598,-500.0,0.0002535,2]
[391924581,1760995838607,-151.0,0.0002535,2]
[391924582,1760995838617,-213.3186526,0.0002535,2]
[391924583,1760995838626,-151.37473815,0.0002535,2]
[391924584,1760995838636,-500.0,0.0002535,2]
[391924585,1760995838646,-500.0,0.0002535,2]
[391924586,1760995838655,-151.0,0.0002535,2]
[391924587,1760995838665,-500.0,0.0002535,2]
[391924588,1760995838674,-500.0,0.0002535,2]
[391924589,1760995838684,-151.0,0.0002535,2]
[391924590,1760995838693,-500.0,0.0002535,2]
[391924591,1760995838703,-500.0,0.0002535,2]
[391924592,1760995838712,-500.0,0.0002535,2]
[391924593,1760995838722,-151.0,0.0002535,2]
[391924594,1760995838731,-151.0,0.0002535,2]
[391924595,1760995838740,-151.0,0.0002535,2]
[391924596,1760995838749,-272.99309488,0.0002535,2]
[391924597,1760995838758,-160.0,0.00025386,2]
[391924598,1760995838767,-217.07250694,0.00025402,2]
[391924599,1760995838775,-1527.63191913,0.00025402,2]
[391924600,1760995838784,-1000.0,0.00025402,2]
[391924601,1760995838793,-1000.0,0.00025402,2]
[391924602,1760995838803,-533.88981491,0.00025402,2]
[391924603,1760995838811,-767.93494172,0.00025402,2]
[391924604,1760995838822,-500.0,0.00025405,2]
[391924605,1760995838831,-199.18929454,0.00025405,2]
[391924606,1760995838844,-500.0,0.00025405,2]
[391924607,1760995838853,-151.0,0.00025405,2]
[391924608,1760995838861,-500.0,0.00025405,2]
[391924609,1760995838871,-580.5971618,0.00025405,2]
[391924610,1760995838880,-151.0,0.00025405,2]
[391924611,1760995838889,-500.0,0.00025405,2]
[391924612,1760995838898,-500.0,0.00025405,2]
[391924613,1760995838907,-151.0,0.00025405,2]
[391924614,1760995838916,-500.0,0.00025405,2]
[391924615,1760995838925,-500.0,0.00025405,2]
[391924616,1760995838935,-560.46134789,0.00025405,2]
[391924617,1760995838944,-151.61557415,0.00025405,2]
[391924618,1760995838953,-151.0,0.00025405,2]
[391924619,1760995838962,-232.70724412,0.00025408,2]
[391924620,1760995838972,-1188.0,0.0002542,2]
[391924621,1760995838981,-1000.0,0.00025421,2]
[391924622,1760995838991,-1000.0,0.00025421,2]
[391924623,1760995839000,-1000.0,0.00025421,2]
[391924624,1760995839009,-1000.0,0.00025421,2]
[391924625,1760995839019,-512.86416693,0.00025421,2]
[391924626,1760995839030,-1000.0,0.00025421,2]
[391924627,1760995839039,-500.0,0.00025421,2]
[391924628,1760995839049,-500.0,0.00025448,2]
[391924629,1760995839059,-13184.81360059,0.0002545,2]
[391924630,1760995839069,-150.0,0.00025451,2]
[391924631,1760995839078,-2178.6,0.00025458,3]
[391924632,1760995839088,-2178.6,0.00025458,3]
[391924633,1760995839097,-500.0,0.00025459,2]
[391924634,1760995839106,-265.77737133,0.00025459,2]
[391924635,1760995839116,-152.29305162,0.0002546,2]
[391924636,1760995839126,-500.0,0.0002546,2]
[391924637,1760995839136,-151.0,0.0002546,2]
[391924638,1760995839146,-500.0,0.0002546,2]
[391924639,1760995839156,-500.0,0.0002546,2]
[391924640,1760995839166,-249.29810661,0.0002546,2]
[391924641,1760995839176,-500.0,0.0002546,2]
[391924642,1760995839186,-500.0,0.0002546,2]
[391924643,1760995839196,-151.0,0.0002546,2]
[391924644,1760995839206,-199.0,0.00025479,8]
[391924645,1760995839216,-500.0,0.00025514,2]
[391924646,1760995839227,-500.0,0.00025514,2]
[391924647,1760995839237,-202.35749936,0.00025514,2]
[391924648,1760995839247,-500.0,0.00025514,2]
[391924649,1760995839257,-500.0,0.00025514,2]
[391924650,1760995839267,-500.0,0.00025514,2]
[391924651,1760995839276,-500.0,0.00025514,2]
[391924652,1760995839286,-151.0,0.00025514,2]
[391924653,1760995839295,-500.0,0.00025569,2]
[391924654,1760995839305,-500.0,0.00025569,2]
[391924655,1760995839314,-500.0,0.00025569,2]
[391924656,1760995839324,-169.26850405,0.00025569,2]
[391924657,1760995839333,-500.0,0.00025569,2]
[391924658,1760995839344,-500.0,0.00025569,2]
[391924659,1760995839353,-274.4352498,0.00025569,2]
[391924660,1760995839362,-500.0,0.00025624,2]
[391924661,1760995839372,-500.0,0.00025624,2]
[391924662,1760995839381,-524.91923794,0.00025624,2]
[391924663,1760995839390,-500.0,0.00025624,2]
[391924664,1760995839400,-357.342709,0.00025624,2]
[391924665,1760995839409,-500.0,0.00025679,2]
[391924666,1760995839419,-500.0,0.00025679,2]
[391924667,1760995839428,-500.0,0.00025679,2]
[391924668,1760995839438,-20379.88,0.000257,7]
[391924669,1760995839447,-500.0,0.00025722,2]
[391924670,1760995839457,-206.0,0.00025733,2]
[391924671,1760995839466,-503.29527612,0.00025734,2]
[391924672,1760995839475,-500.0,0.00025734,2]
[391924673,1760995839485,-199.0,0.00025753,9]
[391924674,1760995839494,-464.01502405,0.00025788,2]
[391924675,1760995839503,-21983.7419243,0.000258,2]
[391924676,1760995839512,-209.0,0.00025863,18]
[391924677,1760995839523,-1188.0,0.00025875,2]
[391924678,1760995839532,-764.98895068,0.0002588,4]
[391924679,1760995839542,-310.03586498,0.00025887,2]
[391924680,1760995839553,-500.0,0.00025917,2]
[391924681,1760995839562,-500.0,0.00025917,2]
[391924682,1760995839572,-260.0,0.00025934,2]
[391924683,1760995839582,-553.64373807,0.0002595,2]
[391924684,1760995839591,-1500.0,0.00025968,2]
[391924685,1760995839602,-1500.0,0.00025968,2]
[391924686,1760995839612,-1500.0,0.00025968,2]
[391924687,1760995839623,-1500.0,0.00025968,2]
[391924688,1760995839633,-500.0,0.00025973,2]
[391924689,1760995839644,-500.0,0.00025973,2]
[391924690,1760995839654,-513.90856149,0.00025973,2]
[391924691,1760995839664,-639.47144588,0.00025973,2]
[391924692,1760995839673,-500.0,0.00025973,2]
[391924693,1760995839683,-160.04802683,0.00025973,2]
[391924694,1760995839694,-433.28505328,0.00025973,2]
[391924695,1760995839704,-500.0,0.00025973,2]
[391924696,1760995839715,-504.37533289,0.00025973,2]
[391924697,1760995839724,-500.0,0.00025973,2]
[391924698,1760995839734,-503.3121768,0.00025973,2]
[391924699,1760995839743,-500.0,0.00025973,2]
[391924700,1760995839753,-435.58700581,0.00025973,2]
[391924701,1760995839763,-253.14378094,0.00025973,2]
[391924702,1760995839774,-500.0,0.00025973,2]
[391924704,1760995839783,-500.0,0.00025973,2]
[391924705,1760995839792,-500.0,0.00025973,2]
[391924706,1760995839805,-374.98897096,0.00025996,2]
[391924707,1760995839815,-137860.83286803,0.00026,30]
[391924708,1760995839825,-151.0,0.00026,7]
[391924709,1760995839836,-199.0,0.00026027,10]
[391924710,1760995839848,-151.0,0.000261,15]
[391924711,1760995839858,-420.0,0.00026128,2]
[391924712,1760995839868,-192.86864001,0.0002616,2]
[391924713,1760995839879,-7628.3877044,0.0002619,2]
[391924714,1760995839889,-1000.0,0.000262,2]
[391924716,1760995839898,-1000.0,0.000262,2]
[391924717,1760995839908,-1000.0,0.000262,2]
[391924718,1760995839919,-1000.0,0.000262,2]
[391924719,1760995839930,-1000.0,0.000262,2]
[391924720,1760995839940,-1000.0,0.000262,2]
[391924721,1760995839950,-1000.0,0.000262,2]
[391924723,1760995839960,-999.443,0.00026227,2]
[391924724,1760995839970,-312.25048316,0.00026257,2]
[391924725,1760995839980,-500.0,0.00026257,2]
[391924726,1760995839990,-500.0,0.00026257,2]
[391924727,1760995840000,-500.0,0.00026257,2]
[391924728,1760995840010,-500.0,0.00026257,2]
[391924730,1760995840020,-214.65975848,0.00026257,2]
[391924731,1760995840030,-500.0,0.00026257,2]
[391924732,1760995840040,-500.0,0.00026257,2]
[391924733,1760995840049,-199.0,0.00026301,11]
[391924734,1760995840059,-896.51620807,0.00026333,2]
[391924735,1760995840069,-505.10969646,0.0002637,2]
[391924736,1760995840079,-909.19745362,0.0002637,2]
[391924737,1760995840089,-1471.32521258,0.00026385,2]
[391924738,1760995840099,-151.0,0.000264,13]
[391924739,1760995840108,-1000.0,0.00026465,2]
[391924740,1760995840118,-4204.0,0.00026474,2]
[391924741,1760995840128,-360.0,0.00026482,2]
[391924743,1760995840138,-381.0,0.00026486,2]
[391924744,1760995840147,-342.10854067,0.00026487,2]
[391924745,1760995840157,-574.12855637,0.00026498,2]
[391924746,1760995840167,-1500.26549386,0.00026516,2]
[391924747,1760995840177,-1335.9880288,0.00026516,2]
[391924748,1760995840187,-2000.0,0.00026516,2]
[391924749,1760995840198,-2000.0,0.00026516,2]
[391924750,1760995840208,-1000.0,0.00026521,2]
[391924751,1760995840219,-503.62179262,0.00026521,2]
[391924752,1760995840229,-1000.0,0.00026521,2]
[391924753,1760995840239,-1000.0,0.00026521,2]
[391924754,1760995840248,-1000.0,0.00026521,2]
[391924755,1760995840257,-1010.21036092,0.00026521,2]
[391924756,1760995840267,-1000.0,0.00026521,2]
[391924757,1760995840277,-1000.0,0.00026521,2]
[391924758,1760995840288,-199.0,0.00026575,12]
[391924759,1760995840298,-800.0,0.00026594,2]
[391924760,1760995840307,-800.0,0.00026596,2]
[391924761,1760995840318,-380.0,0.00026603,2]
[391924762,1760995840327,-800.0,0.00026616,2]
[391924763,1760995840337,-380.0,0.00026643,2]
[391924764,1760995840346,-2163.0,0.00026677,2]
[391924765,1760995840356,-800.0,0.00026691,2]
[391924766,1760995840366,-151.0,0.000267,14]
[391924767,1760995840375,-800.0,0.00026713,2]
[391924768,1760995840384,-800.0,0.00026728,2]
[391924769,1760995840394,-800.0,0.00026729,2]
[391924770,1760995840404,-800.0,0.00026747,2]
[391924771,1760995840414,-800.0,0.0002675,2]
[391924772,1760995840424,-380.0,0.00026762,2]
[391924773,1760995840433,-800.0,0.00026762,2]
[391924774,1760995840443,-800.0,0.00026774,2]
[391924775,1760995840452,-800.0,0.00026798,2]
[391924776,1760995840462,-1000.0,0.00026805,2]
[391924777,1760995840472,-1000.0,0.00026805,2]
[391924778,1760995840482,-1000.0,0.00026805,2]
[391924779,1760995840493,-800.0,0.00026822,2]
[391924780,1760995840503,-800.0,0.00026831,2]
[391924781,1760995840513,-800.0,0.0002684,2]
[391924782,1760995840533,-800.0,0.00026845,2]
[391924783,1760995840547,-199.0,0.00026849,13]
[391924784,1760995840557,-800.0,0.00026871,2]
[391924785,1760995840567,-13184.81360059,0.000269,2]
[391924786,1760995840577,-20379.88,0.000269,7]
[391924787,1760995840588,-800.0,0.00026926,2]
[391924788,1760995840598,-201.79506684,0.00026932,2]
[391924789,1760995840610,-7628.3877044,0.00026941,2]
[391924790,1760995840621,-3163.854107,0.00026951,2]
[391924791,1760995840631,-11851.2564258,0.00026951,2]
[391924792,1760995840642,-632.214883,0.00026951,2]
[391924793,1760995840652,-1614.73467764,0.00026969,2]
[391924794,1760995840662,-620.22356658,0.00026973,2]
[391924795,1760995840672,-500.0,0.00026973,2]
[391924796,1760995840682,-150.0,0.00026973,2]
[391924797,1760995840692,-306.977215,0.00027,2]
[391924798,1760995840703,-209.610788,0.00027,2]
[391924799,1760995840713,-3418.1245584,0.00027,5]
[391924800,1760995840724,-980541.327201,0.00027,2]
[391924801,1760995840740,-1083547.42942267,0.00027,2]
[391924839,1760995846312,-500.0,0.00024873,2]
[391924840,1760995846323,-1003.05602523,0.00025421,2]
[391924841,1760995846334,-500.0,0.00025973,2]
[391924842,1760995846345,-632.0,0.00026227,2]
[391924843,1760995846354,-1000.0,0.00026521,2]
[391924844,1760995846364,-4689.94397477,0.0002699,2]
[391924854,1760995883419,150.0,0.0002185,2]
[391924855,1760995883580,150.0,0.00023836,2]
[391924857,1760995958813,6381.8266383,0.00023998,2]
[391924858,1760995958835,10000.01,0.00023998,2]
[391924859,1760995958857,10000.01,0.00023998,2]
[391924860,1760995958893,10000.01,0.00023998,2]
[391924861,1760995958920,10000.01,0.00023998,2]
[391924862,1760995958945,10000.01,0.00023998,2]
[391924863,1760995958972,10000.01,0.00023998,2]
[391924864,1760995958997,10000.01,0.00023998,2]
[391924865,1760995959022,10000.01,0.00023998,2]
[391924866,1760995959047,10000.01,0.00023998,2]
[391924867,1760995959084,273618.0833617,0.00023998,2]
[391924868,1760995978934,196.0,0.00016,2]
[391924869,1760995979002,196.0,0.000167,2]
[391924870,1760995979081,196.0,0.000174,2]
[391924871,1760995979173,266.32544327,0.000181,2]
[391924872,1760995995533,4064.15116383,0.00024073,2]
[391924873,1760996014463,163.41,0.00021891,2]
[391924874,1760996014865,326.83,0.00023881,2]
[391924875,1760996072553,500.0,0.00023775,10]
[391924876,1760996074809,500.0,0.00023775,10]
[391924877,1760996077095,500.0,0.00023775,10]
[391924878,1760996079335,225.48,0.00023775,10]
[391924879,1760996082515,157.0,8.3e-07,2]
[391924880,1760996083853,157.0,8.3e-07,2]
[391924881,1760996097784,157.18,0.00021837,2]
[391924882,1760996098191,314.35,0.00023822,2]
[391924883,1760996132118,180.585421,0.00024704,120]
[391924884,1760996175199,2080.2833929,0.00024073,2]
[391924885,1760996175222,2919.7166071,0.00024073,2]
[391924886,1760996178608,151.17,0.00021743,2]
[391924887,1760996179051,302.35,0.0002372,2]
[391924888,1760996199027,5000.0,0.00024073,2]
[391924889,1760996221857,1626.7733929,0.00024073,2]
[391924890,1760996221882,3373.2266071,0.00024073,2]
[391924892,1760996245170,5000.0,0.00024073,2]
[391924893,1760996260947,150.0,0.00021691,2]
[391924894,1760996261913,290.8,0.00023662,2]
[391924895,1760996267448,1185.9833929,0.00024073,2]
[391924896,1760996267472,3814.0166071,0.00024073,2]
[391924897,1760996280334,335.71,0.00015984,19]
[391924898,1760996280608,335.71,0.00015984,19]
[391924899,1760996280924,335.71,0.00015984,19]
[391924900,1760996290276,393.6270874,0.00024075,2]
[391924901,1760996344020,150.0,0.00021814,2]
[391924902,1760996344414,279.58,0.00023797,2]
[391924903,1760996366981,5000.0,0.00024075,2]
[391924904,1760996390451,5000.0,0.00024075,2]
[391924905,1760996404833,0.01,0.00023955,12]
[391924906,1760996404854,1058.69039989,0.00023955,12]
[391924907,1760996413831,5000.0,0.00024075,2]
[391924908,1760996429354,150.0,0.0002146,2]
[391924909,1760996429738,268.65,0.0002341,2]
[391924910,1760996436145,3522.66960011,0.00024075,2]
[391924911,1760996436168,1477.33039989,0.00024075,2]
[391924912,1760996459700,5000.0,0.00024075,2]
[391924913,1760996482835,5000.0,0.00024075,2]
[391924914,1760996506431,0.01,0.00024075,2]
[391924915,1760996506452,658.67950611,0.00024075,2]
[391924916,1760996513376,150.0,0.00021457,2]
[391924917,1760996513811,261.81,0.00023408,2]
[391924918,1760996595004,150.0,0.00021487,2]
[391924919,1760996595455,251.33,0.00023441,2]
[391924923,1760996676412,150.0,0.00021487,2]
[391924924,1760996676835,241.11,0.0002344,2]
[391924932,1760996756540,150.0,0.00021489,2]
[391924933,1760996757512,231.16,0.00023442,2]
[391924934,1760996837547,150.0,0.00021488,2]
[391924935,1760996838090,221.45,0.00023442,2]
[391924936,1760996899527,739.699277,0.00013699,2]
[391924937,1760996899734,739.699277,0.00020187,2]
[391924940,1760996917758,150.0,0.00021483,2]
[391924941,1760996918204,212.0,0.00023436,2]
[391924942,1760996997008,150.0,0.00021483,2]
[391924943,1760996997440,202.79,0.00023436,2]
[391924974,1760997032240,-235.20298343,0.00024399,2]
[391924976,1760997032249,-423.97863795,0.000244,2]
[391924978,1760997032258,-351.62593919,0.00024518,2]
[391924997,1760997038106,-291.37406081,0.00024518,2]
[391924998,1760997038115,-300.0,0.00024518,2]
[391924999,1760997038124,-4118.21502216,0.00024519,30]
[391925000,1760997038164,-5996.40712374,0.00024519,30]
[391925002,1760997038173,-158.4784229,0.00024588,2]
[391925003,1760997038186,-180.585421,0.00024704,2]
[391925004,1760997038196,-461.0196277,0.00024788,2]
[391925005,1760997038205,-270.48343095,0.00024999,2]
[391925006,1760997038214,-500.0,0.00024999,2]
[391925007,1760997038223,-12563.95928166,0.00025,2]
[391925008,1760997038232,-163.0,0.00025,7]
[391925009,1760997038242,-21091.6642387,0.00025,2]
[391925010,1760997038252,-150.0,0.00025058,30]
[391925011,1760997038261,-516.90986042,0.00025105,2]
[391925012,1760997038271,-199.0,0.00025205,7]
[391925013,1760997038280,-304.18,0.00025389,2]
[391925014,1760997038290,-533.88981491,0.00025424,2]
[391925015,1760997038300,-199.0,0.00025479,8]
[391925016,1760997038310,-305.76387846,0.00025599,2]
[391925017,1760997038319,-199.0,0.00025753,9]
[391925018,1760997038329,-209.0,0.00025836,14]
[391925019,1760997038339,-306.37904578,0.0002588,4]
[391925020,1760997038349,-1245.67539586,0.0002588,4]
[391925021,1760997038359,-300.0,0.00025927,20]
[391925022,1760997038369,-300.0,0.00025927,20]
[391925023,1760997038379,-300.0,0.00025927,20]
[391925024,1760997038389,-300.0,0.00025927,20]
[391925025,1760997038398,-300.0,0.00025927,20]
[391925026,1760997038408,-300.0,0.00025927,20]
[391925027,1760997038417,-300.0,0.00025927,20]
[391925028,1760997038428,-300.0,0.00025927,20]
[391925029,1760997038437,-300.0,0.00025927,20]
[391925030,1760997038448,-300.0,0.00025927,20]
[391925031,1760997038458,-300.0,0.00025927,20]
[391925032,1760997038467,-300.0,0.00025927,20]
[391925033,1760997038477,-300.0,0.00025927,20]
[391925034,1760997038486,-300.0,0.00025927,20]
[391925035,1760997038496,-300.0,0.00025927,20]
[391925036,1760997038505,-553.64373807,0.00025972,2]
[391925037,1760997038515,-100000.0,0.0002599,2]
[391925038,1760997038524,-160.0,0.00026014,2]
[391925039,1760997038534,-199.0,0.00026027,10]
[391925040,1760997038543,-1000.0,0.000261,2]